Cogmind - Beta 14 @@@ ROGUE MODE // 2024.09.20 @ 18:29:11 Player: sionia Result: Destroyed by Y-45 Defender with Beam Rifle Performance ------------- Evolutions (0) 0 Regions Visited (2) 400 Robots Destroyed (31) 155 Value Destroyed (657) 657 Prototype IDs (0) 0 Alien Tech Used (0) 0 Bonus (0) 0 TOTAL SCORE: 1212 Bonus ------- None Cogmind --------- Core Integrity 0/250 Matter 195/300 Energy 250/250 System Corruption 1% Temperature Cool (9) Movement Treading (160) Location -10/Mines Parts ------- > --- POWER (1) -------- Ion Engine > --- PROPULSION (2) --- Light Treads Aluminum Leg > --- UTILITY (2) ------ Improved Heat Sink Small Storage Unit > --- WEAPON (2) ------- Light Cannon Light Cannon > --- INVENTORY (8) ---- Compact Wheel Flight Unit Flight Unit Medium Laser Particle Gun Light Cannon Mining Laser Peak State ------------ > --- POWER ------------ Ion Engine > --- PROPULSION ------- Aluminum Leg Aluminum Leg > --- UTILITY ---------- Improved Heat Sink Small Storage Unit > --- WEAPON ----------- Assault Rifle Light Assault Rifle > --- INVENTORY -------- Light Ion Engine Light Treads Light Treads Aluminum Leg Medium Laser Mining Laser [Rating: 9] Favorites ----------- Power Ion Engine Engine Ion Engine Propulsion Aluminum Leg Treads Light Treads Leg Aluminum Leg Wheel Compact Wheel Flight Unit Flight Unit Utility Small Storage Unit Device Improved Heat Sink Storage Small Storage Unit Weapon Light Cannon Ballistic Gun Assault Rifle Ballistic Cannon Light Cannon Build | -11 -10 -10 ------- Run | Yrd Mat Min Slots Evolved . | . . . Power . | . . . Propulsion . | . . . Utility . | . . . Weapon . | . . . Parts Attached 23 | 6 12 5 Power 4 | 1 3 . Engine 4 | 1 3 . Core . | . . . Reactor . | . . . Propulsion 13 | 2 6 5 Treads 1 | . . 1 Leg 8 | 2 4 2 Wheel 2 | . . 2 Hover . | . . . Flight 2 | . 2 . Utility 2 | 1 1 . Device 1 | . 1 . Storage 1 | 1 . . Processor . | . . . Hackware . | . . . Protection . | . . . Artifact . | . . . Weapon 4 | 2 2 . Energy Gun . | . . . Energy Cannon . | . . . Ballistic Gun 2 | 2 . . Ballistic Cannon 2 | . 2 . Launcher . | . . . Special Weapon . | . . . Impact Weapon . | . . . Slashing Weapon . | . . . Piercing Weapon . | . . . Special Melee Weapon . | . . . Unidentified Prototypes . | . . . Parts Lost 6 | . 4 2 Power 1 | . 1 . Propulsion 5 | . 3 2 Utility . | . . . Weapon . | . . . Highest Loss Streak 1 | . 1 1 To Critical Strikes . | . . . Average Slot Usage (%) 94 | . 93 95 Engine 13 | . 13 14 Treads 1 | . . 4 Leg 20 | . 24 14 Wheel 2 | . . 5 Device 12 | . 11 14 Storage 14 | . 14 14 Ballistic Gun 4 | . 7 . Ballistic Cannon 23 | . 21 28 Peak Build Rating 9 | 6 9 9 Average Rating 8 | 4 8 8 On Entrance 4 | . 6 8 Naked Turns . | . . . Heaviest Build 17 | 11 17 17 Greatest Support 26 | 20 20 26 Greatest Overweight (x) 4 | . 4 1 Average Overweight (x) . | . . . Largest Inventory Capacity 8 | 8 8 8 Average Capacity 7 | 7 8 8 Most Carried 8 | 5 8 8 Average Carried 6 | 2 6 6 Final Capacity 8 | 8 8 8 Final Carried 7 | 5 6 7 Class Distribution -------------------- 73% | Mutant 26% | Scavenger-Mutant Dominant Class ---------------- Mutant | -10/Materials Mutant | -10/Mines Resources | -11 -10 -10 ----------- Run | Yrd Mat Min Matter Collected 858 | 250 386 222 Remotely . | . . . Salvage Created 880 | 107 593 180 Parts 67 | 3 46 18 Haulers Intercepted . | . . . Recyclers Shooed . | . . . Parts Field Recycled . | . . . Retrieved Matter . | . . . Parts Self-Destructed . | . . . Prevented . | . . . Kills | -11 -10 -10 ------- Run | Yrd Mat Min Combat Hostiles Destroyed 16 | . 11 5 Guns 5 | . 5 . Cannons 11 | . 6 5 Classes Destroyed 8 | 2 5 1 Worker 5 | . 4 1 Builder 3 | . 2 1 Tunneler 1 | 1 . . Recycler 4 | 1 2 1 Operator 1 | . 1 . Watcher 1 | . 1 . Swarmer 3 | . . 3 Grunt 13 | . 11 2 Best Kill Streak 10 | 2 10 4 Combat Bots Only 4 | . 4 4 Max Kills in Single Turn 3 | 1 3 1 Gunslinging 1 | . 1 . Exploded . | . . . Melee . | . . . Uniques/NPCs Destroyed . | . . . Combat | -11 -10 -10 -------- Run | Yrd Mat Min Hostile Shots Fired 134 | . 88 46 Missed 45 | . 30 15 Damage Taken 1124 | . 767 357 Core 257 | . 207 50 Absorbed by Shields . | . . . Core Remaining (%) 100 | 100 . . Volleys Fired 89 | 5 62 22 Largest 2 | 2 2 2 Hottest 70 | 40 70 70 Shots Fired 178 | 10 123 45 Gun 58 | 10 48 . Cannon 120 | . 75 45 Launcher . | . . . Special . | . . . Kinetic 178 | 10 123 45 Thermal . | . . . Explosive . | . . . Electromagnetic . | . . . Robot Hit Streak 13 | 3 13 5 Robot Miss Streak 7 | 2 4 7 Penetration Max . | . . . Secondary Targets 2 | . 2 . Max Gunslinging Chain 1 | . 1 . Shots Hit Robots 99 | 6 75 18 Core Hits 44 | 4 31 9 Critical Kills . | . . . Critical Parts Destroyed 1 | . 1 . Critical Strikes 2 | . 2 . Destroy 1 | . 1 . Blast 1 | . 1 . Melee Attacks . | . . . Impact . | . . . Slashing . | . . . Piercing . | . . . Sneak Attacks . | . . . Combat Hostiles . | . . . Follow-up Attacks . | . . . Damage Inflicted 1804 | 76 1394 334 Guns 418 | 63 355 . Cannons 1060 | . 729 331 Explosions 308 | . 308 . Melee . | . . . Ramming 18 | 13 2 3 Kinetic 1478 | 63 1084 331 Thermal . | . . . Explosive 308 | . 308 . Electromagnetic . | . . . Impact . | . . . Slashing . | . . . Piercing . | . . . Highest Corruption 1 | . 1 1 Average Corruption 1 | . 1 1 Corruption Purged . | . . . Corruption Blocked . | . . . Effects 10 | . 4 6 Message Errors 3 | . 1 2 Matter Fused 1 | . 1 . Energy Discharges 2 | . 1 1 Data Loss (minor) 1 | . . 1 Data Loss (major) 1 | . . 1 Misfires 1 | . . 1 Weapon Failures 1 | . 1 . Overload Shots . | . . . Overflow Damage 33 | . 33 . Projectiles . | . . . Explosions 33 | . 33 . Melee . | . . . Knockbacks 11 | . 8 3 Impact . | . . . Kinetic 10 | . 7 3 Secondary 1 | . 1 . Self-Inflicted Damage 45 | . 45 . Shots 1 | . 1 . Rammed . | . . . Targets Rammed 12 | 9 1 2 Kicked 12 | 9 1 2 Crushed . | . . . Highest Temperature 16 | . 16 . Average Temperature 5 | . 5 . Received Heat Transfer 564 | . 453 111 Siege Activations . | . . . Robots Corrupted . | . . . Combat Hostiles . | . . . Parts Fried . | . . . Impact Corruptions . | . . . Robots Melted . | . . . Combat Hostiles . | . . . Parts Melted . | . . . Heat Transferred . | . . . Parts Sabotaged . | . . . Parts Stolen . | . . . Parts Stripped . | . . . Power Chain Reactions . | . . . Alert | -11 -10 -10 ------- Run | Yrd Mat Min Peak Influence 352 | 10 352 214 Initial 84 | . 6 84 Average 117 | 1 136 110 Maximum Alert Level 1 | . 1 1 Low Security (%) 82 | 100 73 93 Level 1 17 | . 26 6 Level 2 . | . . . Level 3 . | . . . Level 4 . | . . . Level 5 . | . . . High Security . | . . . Max Security . | . . . Squads Dispatched 3 | . 3 . Investigation 1 | . 1 . Extermination . | . . . Reinforcement 2 | . 2 . Assault . | . . . Garrison . | . . . Intercept . | . . . Searches Triggered . | . . . Construction Impeded . | . . . Haulers Reinforced . | . . . Active Scanning Responses . | . . . Cargo Convoy Interrupts . | . . . Stealth | -11 -10 -10 --------- Run | Yrd Mat Min Distress Signals 2 | . 2 . Communications Jammed . | . . . Distress Signals . | . . . Times Spotted 34 | . 26 8 Peak Tracking Total 7 | . 7 2 Tactical Retreats 4 | . 3 1 Traps | -11 -10 -10 ------- Run | Yrd Mat Min Traps Triggered 2 | . 2 . Indirectly . | . . . Trap Hack Attempts . | . . . Triggered . | . . . Disarmed . | . . . Reprogrammed . | . . . Reused . | . . . Traps Extracted . | . . . Installed . | . . . Triggered . | . . . Machines | -11 -10 -10 ---------- Run | Yrd Mat Min Machines Disabled 5 | . 5 . Max in Single Turn 2 | . 2 . Machines Repaired . | . . . Machines Dismantled . | . . . Machines Sabotaged . | . . . Overloaded Fab Kills . | . . . Hacking | -11 -10 -10 --------- Run | Yrd Mat Min Machines Accessed 2 | . 2 . Terminals 2 | . 2 . Fabricators . | . . . Repair Stations . | . . . Recycling Units . | . . . Scanalyzers . | . . . Garrison Access . | . . . Total Hacks 3 | . 3 . Successful 2 | . 2 . Failed 1 | . 1 . Catastrophic . | . . . Database Lockouts . | . . . Manual . | . . . Terminals 3 | . 3 . Fabricators . | . . . Repair Stations . | . . . Recycling Units . | . . . Scanalyzers . | . . . Garrison Access . | . . . Terminal Hacks 2 | . 2 . Terminal Index 1 | . 1 . Transport Status 1 | . 1 . Fabricator Hacks . | . . . Repair Station Hacks . | . . . Recycling Unit Hacks . | . . . Scanalyzer . | . . . Garrison Access Hacks . | . . . Unauthorized Hacks . | . . . Terminals . | . . . Fabricators . | . . . Repair Stations . | . . . Recycling Units . | . . . Scanalyzers . | . . . Garrison Access . | . . . Data Cores Recovered . | . . . Used . | . . . Hacking Detections 1 | . 1 . Full Trace Events . | . . . Feedback Events . | . . . Feedback Blocked . | . . . Robot Schematics Acquired . | . . . Robots Built . | . . . Authchips . | . . . Time . | . . . Total Robot Build Rating . | . . . Part Schematics Acquired . | . . . Parts Built . | . . . Authchips . | . . . Time . | . . . Total Part Build Rating . | . . . Parts Repaired . | . . . Time . | . . . Parts Recycled . | . . . Recycled Matter . | . . . Retrieved Matter . | . . . Retrieved Components . | . . . Parts Scanalyzed . | . . . Part Schematics Acquired . | . . . Parts Damaged . | . . . Bothacking | -11 -10 -10 ------------ Run | Yrd Mat Min Used RIF Installer . | . . . Robots Hacked . | . . . Non-combat . | . . . Combat . | . . . Robot Hacks Applied . | . . . Relay Couplers Released . | . . . Fabnet Peak Effective % . | . . . Robots Rewired . | . . . Allies Hacked . | . . . Hacks Repelled . | . . . Allies | -11 -10 -10 -------- Run | Yrd Mat Min Total Allies . | . . . Largest Group . | . . . Highest-Rated Group . | . . . Highest-Rated Ally . | . . . Total Orders . | . . . Ally Attacks . | . . . Total Damage . | . . . Kills . | . . . Allies Corrupted . | . . . Allies Melted . | . . . Intel | -11 -10 -10 ------- Run | Yrd Mat Min Robot Analysis Total . | . . . Derelict Logs Recovered 2 | . . 2 Drone Launches . | . . . Drone Recoveries . | . . . Exploration | -11 -10 -10 ------------- Run | Yrd Mat Min Turns Passed 1474 | 105 817 552 Spaces Moved 828 | 61 447 320 Core 12 | 12 . . Treads 102 | . . 102 Legs 655 | 49 445 161 Wheels 57 | . . 57 Hover . | . . . Flight 2 | . 2 . Fastest Speed 50 | 50 117 90 Average Speed 134 | 106 132 142 Slowest Speed 360 | 120 360 190 Overloaded Moves . | . . . Propulsion Burnouts . | . . . Robots Hopped . | . . . Cave-ins Triggered . | . . . Exploration Rate (%) 46 | 4 70 65 Regions Visited 2 Branch Regions 1 Pre-discovered Areas 1 | . . 1 Known Exits Taken . | . . . Unknown Exits Taken 2 | 1 1 . Scrap Searched 1 | . . 1 Spaces Dug . | . . . Terrain Destroyed 19 | . 19 . Melee . | . . . Projectile . | . . . AOE 19 | . 19 . Terrain Rammed . | . . . Walls Destroyed . | . . . Machines Disabled . | . . . Actions | -11 -10 -10 --------- Run | Yrd Mat Min Total 1011 | 90 551 370 Wait 32 | . 15 17 Move 827 | 61 446 320 Hop . | . . . Pick Up 22 | 10 9 3 Fast Attach 3 | 1 1 1 Attach 13 | 5 5 3 Detach 1 | . . 1 Swap 7 | . 6 1 Drop 6 | . 6 . Fire 89 | 5 62 22 Melee . | . . . Ram . | . . . Kick 11 | 8 1 2 Crush . | . . . Escape Stasis . | . . . Rewire . | . . . Trap . | . . . Miscellaneous . | . . . Route ------- -11/Scrapyard -10/Materials (discovered 4 exits: [*Mat x2] / [*Min x2]) -10/Mines (discovered 2 exits: [*Mat] / [*Sub]) History --------- Turn | Location | Event 7 | -11/Scrapyard | Discovered new exit (range 16) 106 | -11/Scrapyard | Entered Materials 156 | -10/Materials | Discovered new exit (range 9) 301 | -10/Materials | Discovered new exit (range 8) 306 | -10/Materials | Build established: Mutant 339 | -10/Materials | Core integrity fell below 50% 664 | -10/Materials | Discovered new exit (range 12) 873 | -10/Materials | Discovered new exit (range 15) 903 | -10/Materials | Core integrity fell below 20% 923 | -10/Materials | Entered Mines 988 | -10/Mines | Discovered new exit (range 8) 1168 | -10/Mines | Learned Materials machine intel 1410 | -10/Mines | Discovered new exit (range 15) 1469 | -10/Mines | Learned location of Storage (-7) 1475 | -10/Mines | Destroyed by Y-45 Defender with Beam Rifle Last Messages --------------- 01285_ G-47 Trooper destroyed. 01290_ Acquired 24 matter. 01292_ Acquired 1 matter. 01294_ Acquired 9 matter. 01305_ Searching scrap... 01305_ Found Lgt. Treads. 01305_ Found Power Shielding. 01305_ Found Com. Wheel. 01305_ Found 62 Matter. 01306_ Acquired 62 matter. 01311_ Acquired Lgt. Treads. 01346_ System corrupted: FCS attempts to trigger Lgt. Cannon. 01346_ System corrupted: Lgt. Cannon misfires. 01410_ EXIT=FOUND 01411_ T-07 Excavator is excavating. 01449_ System corrupted: Substantial component data lost. 01469_ Acquired derelict log, extracted data. World map updated: -7/Storage. Map ----- +----------------------------------------------------+ | | | | | | | | | | | | | | | | | | | | | | | | | | | | | | | | | | | | | ????????????????????????????????????????????? | | ?????######?????????????????????????????????? | | ????##"!!"#??####???????????????????????????? | | ????#""!!""?## ##??????????????????????????? | | ????# ??# #?????????#????????????????? | | ?????# ??# ######### #????????????????? | | ????###//#### Y #????????????????? | | ????# # Y @ #????????????????? | | ????# ### ########????????????????? | | ???## #?# #???????????????????????? | | ???# #?# #???????????????????????? | | ???# ##?# #???????????????????????? | | ???# ##??# #???????????????????????? | | ???## ##?## ####????????????????????? | | ????####### ## ##???????????????????? | | ?????#????## ### #???????????????? | | ?????#<##### #???????????????? | | ?????# # #??????????????????? | | ??????# ### #??????????????????? | | ??????# #??# #??????????????????? | | ??????### # #?????? #?????????????????? | | ????????### ##?????????????????????????? | | ?????????# ##??????????????????####### | | ?????????# #?????????????????## # | | ?????????## #?????????????????# | | ??????????##### #?????????????????# | | ??????????????## #?################# | | ??????????????## ### ## | | ?????????????## ###### | | ????????????## ############# ##???? | | ????????????# ####???????????# ##??? | | ????????????# #????????####??# ##?? | +----------------------------------------------------+ Best States ------------- Heat Dissipation 39 Energy Generation 10 Energy Capacity 250 Matter Stores 300 Matter Capacity 300 Sight Range 16 Terrain Scan Density 10 Evasion (%) 55 Recoil Reduction 1 Item Schematics ----------------- None Robot Schematics ------------------ None Fabricated ------------ Nothing Alien Tech Used ----------------- None Achievements -------------- None Challenges ------------ None Game ------ Seed OmegaOvertunedFilter Manual? 0 Play Time 00:14:51 Cumulative 7.1 hours Start 2024.09.20 @ 18:14:56 End 2024.09.20 @ 18:29:11 Sessions 1 Manual Loads 0 Difficulty Rogue Special Mode None Game No. 16 Rogue 15 Adventurer 1 Explorer 0 Win Type - Total 0 Types 0/0/0/0/0/0/0/0/0 Lore% 3 Gallery% 10 Achievement% 13 Wizard Run 0 Options --------- Layout 1 ASCII 0 Keyboard 0 Movement Mouse Keybinds 0 Fullscreen 1 Font 32/SmallcapsGlow Map View 50x35 Zoom Use 0% Tactical HUD 1 Map Filters NONE Filters NONE Steam 1 RUN: 655fe522-8325-43e7-b8dd-0812e6b10922